[Event "European-ch Seniors 2018"]
[Site "Drammen"]
[Date "2018.08.10"]
[Round "7"]
[White "Furman, Boris"]
[Black "Svensson, Leif"]
[Result "1/2-1/2"]
[ECO "D31"]
[WhiteElo "2242"]
[BlackElo "2052"]
[Annotator "NA"]
[PlyCount "103"]
[EventDate "2018.08.04"]
[EventType "swiss"]
[EventCountry "NOR"]
[SourceTitle "playchess.com"]
[Source "ChessBase"]
[SourceQuality "1"]
[TimeControl "40/5400+30:1800+30"]

1. d4 {[%emt 0:00:00]} d5 {[%emt 0:00:00]} 2. c4 {[%emt 0:00:00]} e6 {[%emt 0:00:00]} 3. Nc3 {[%emt 0:00:00]} c6 {[%emt 0:00:00]} 4. cxd5 {[%emt 0:00:04]} exd5 {[%emt 0:00:00]} 5. Qc2 {[%emt 0:00:26]} g6 {[%emt 0:03:06]} 6. Bf4 {[%emt 0:00:13]} Bd6 {[%emt 0:00:30]} 7. Bg3 {[%emt 0:07:13]} Ne7 {[%emt 0:00:42]} 8. Nf3 {[%emt 0:04:31]} Nf5 {[%emt 0:01:39]} 9. O-O-O {[%emt 0:05:42]} Nxg3 {[%emt 0:00:18]} 10. hxg3 {[%emt 0:00:06]} Be6 {[%emt 0:03:36]} 11. e4 {[%emt 0:05:04]} Be7 {[%emt 0:09:27]} 12. exd5 {[%emt 0:06:12]} cxd5 {[%emt 0:00:11]} 13. Bb5+ {[%emt 0:07:10]} Kf8 {[%emt 0:00:38]} 14. Ne5 {[%emt 0:01:22]} Kg7 {[%emt 0:01:52]} 15. Qd2 {[%emt 0:00:51]} h5 {[%emt 0:01:11]} 16. Qe2 {[%emt 0:03:09]} Qc8 {[%emt 0:11:25]} 17. Kb1 {[%emt 0:10:48]} a6 {[%emt 0:02:17]} 18. Ba4 {[%emt 0:01:28]} Bf6 {[%emt 0:05:13]} 19. Bb3 {[%emt 0:01:31]} Rd8 {[%emt 0:02:09]} 20. Na4 {[%emt 0:07:32]} Rd6 {[%emt 0:01:50]} 21. Rc1 {[%emt 0:00:53]} Qd8 {[%emt 0:03:17]} 22. Nc5 {[%emt 0:00:47]} Bf5+ {[%emt 0:02:33]} 23. Ka1 {[%emt 0:00:07]} Rb6 {[%emt 0:00:38]} 24. g4 {[%emt 0:03:01]} hxg4 {[%emt 0:01:22]} 25. Nxg4 {[%emt 0:01:27]} Nd7 {[%emt 0:09:36]} 26. Nxf6 {[%emt 0:03:26]} Nxf6 {[%emt 0:03:35]} 27. Qd2 {[%emt 0:01:38]} Ng8 {[%emt 0:01:45]} 28. f3 {[%emt 0:00:49]} Rc8 {[%emt 0:02:37]} 29. g4 {[%emt 0:00:13]} Be6 {[%emt 0:01:27]} 30. g5 {[%emt 0:01:46]} Bf5 {[%emt 0:01:23]} 31. f4 {[%emt 0:00:20]} Rbc6 {[%emt 0:06:22]} 32. Rce1 {[%emt 0:06:03]} b5 {[%emt 0:01:41]} 33. Rh4 {[%emt 0:01:35]} f6 {[%emt 0:02:43]} 34. Reh1 {[%emt 0:02:10]} fxg5 {[%emt 0:02:45]} 35. fxg5 {[%emt 0:00:07]} a5 {[%emt 0:00:26]} 36. Qf4 {[%emt 0:00:44]} Qd6 {[%emt 0:03:54]} 37. Qf3 {[%emt 0:03:40]} Rxc5 {[%emt 0:02:58]} 38. dxc5 {[%emt 0:00:08]} Qxc5 {[%emt 0:00:05]} 39. Qc3+ {[%emt 0:01:45]} Kf7 {[%emt 0:03:21]} 40. Rh7+ {[%emt 0:00:00]} Ke6 {[%emt 0:00:00]} 41. Rg7 {[%emt 0:16:42]} a4 {[%emt 0:04:23]} 42. Bxd5+ {[%emt 0:01:07]} Kxd5 {[%emt 0:00:25]} 43. Qxc5+ {[%emt 0:01:22]} Rxc5 {[%emt 0:01:12]} 44. Rxg8 {[%emt 0:00:07]} b4 {[%emt 0:00:32]} 45. Rb8 {[%emt 0:04:31]} Rc4 {[%emt 0:00:54]} 46. Rg1 {[%emt 0:02:38]} Ke5 {[%emt 0:01:45]} 47. b3 {[%emt 0:01:55]} axb3 {[%emt 0:00:13]} 48. axb3 {[%emt 0:00:06]} Rd4 {[%emt 0:00:59]} 49. Re8+ {[%emt 0:02:00]} Kf4 {[%emt 0:00:25]} 50. Re2 {[%emt 0:00:45]} Bg4 {[%emt 0:01:51]} 51. Rf1+ {[%emt 0:00:55]} Kxg5 {[%emt 0:00:29]} 52. Re5+ {[%emt 0:01:30]} 1/2-1/2

[Event "European-ch Seniors 2018"]
[Site "Drammen"]
[Date "2018.08.10"]
[Round "7"]
[White "Moen, Ole Christian"]
[Black "Ashby, Anthony"]
[Result "1/2-1/2"]
[ECO "C02"]
[WhiteElo "2228"]
[BlackElo "2055"]
[Annotator "NA"]
[PlyCount "92"]
[EventDate "2018.08.04"]
[EventType "swiss"]
[EventCountry "NOR"]
[SourceTitle "playchess.com"]
[Source "ChessBase"]
[SourceQuality "1"]
[TimeControl "40/5400+30:1800+30"]

1. e4 {[%emt 0:00:00]} e6 {[%emt 0:00:00]} 2. d4 {[%emt 0:00:00]} d5 {[%emt 0:00:00]} 3. e5 {[%emt 0:00:31]} Qd7 {[%emt 0:00:40]} 4. Nf3 {[%emt 0:02:42]} b6 {[%emt 0:00:14]} 5. c3 {[%emt 0:02:42]} a5 {[%emt 0:02:31]} 6. Bd3 {[%emt 0:04:30]} Ba6 {[%emt 0:00:24]} 7. O-O {[%emt 0:01:03]} Ne7 {[%emt 0:02:32]} 8. Na3 {[%emt 0:01:24]} Ng6 {[%emt 0:04:27]} 9. Nc2 {[%emt 0:01:01]} Be7 {[%emt 0:02:18]} 10. g3 {[%emt 0:00:40]} c5 {[%emt 0:05:13]} 11. h4 {[%emt 0:02:19]} h6 {[%emt 0:09:29]} 12. h5 {[%emt 0:04:08]} Nf8 {[%emt 0:00:09]} 13. Bxa6 {[%emt 0:02:01]} Nxa6 {[%emt 0:00:09]} 14. Qe2 {[%emt 0:01:17]} c4 {[%emt 0:09:05]} 15. b3 {[%emt 0:00:16]} b5 {[%emt 0:00:23]} 16. Ba3 {[%emt 0:07:55]} Nh7 {[%emt 0:03:00]} 17. Rfb1 {[%emt 0:09:00]} O-O {[%emt 0:00:29]} 18. Bxe7 {[%emt 0:00:46]} Qxe7 {[%emt 0:00:08]} 19. a4 {[%emt 0:00:13]} cxb3 {[%emt 0:16:02]} 20. Rxb3 {[%emt 0:00:10]} b4 {[%emt 0:00:14]} 21. Rab1 {[%emt 0:03:51]} Rfb8 {[%emt 0:05:02]} 22. Qd2 {[%emt 0:02:31]} Qe8 {[%emt 0:02:20]} 23. cxb4 {[%emt 0:01:08]} Nxb4 {[%emt 0:03:03]} 24. Nxb4 {[%emt 0:01:26]} Rxb4 {[%emt 0:02:47]} 25. Rxb4 {[%emt 0:00:25]} axb4 {[%emt 0:00:07]} 26. Rxb4 {[%emt 0:01:25]} Rxa4 {[%emt 0:00:15]} 27. Rb7 {[%emt 0:00:33]} Qc8 {[%emt 0:07:40]} 28. Qb2 {[%emt 0:01:23]} Ra8 {[%emt 0:01:32]} 29. Kg2 {[%emt 0:01:09]} Nf8 {[%emt 0:01:05]} 30. Qb4 {[%emt 0:00:50]} Nd7 {[%emt 0:02:38]} 31. Ne1 {[%emt 0:02:32]} Rb8 {[%emt 0:00:25]} 32. Rxb8 {[%emt 0:00:31]} Qxb8 {[%emt 0:01:07]} 33. Nd3 {[%emt 0:05:13]} Qxb4 {[%emt 0:02:11]} 34. Nxb4 {[%emt 0:00:06]} Kf8 {[%emt 0:04:33]} 35. f4 {[%emt 0:00:19]} Nb6 {[%emt 0:01:18]} 36. Kf3 {[%emt 0:01:01]} Nc4 {[%emt 0:00:17]} 37. Ke2 {[%emt 0:00:25]} Ke7 {[%emt 0:00:25]} 38. g4 {[%emt 0:00:33]} f6 {[%emt 0:04:51]} 39. Nc2 {[%emt 0:02:59]} Kf7 {[%emt 0:01:35]} 40. Ne3 {[%emt 0:00:00]} Na5 {[%emt 0:00:00]} 41. Kd3 {[%emt 0:04:29]} Nc6 {[%emt 0:03:10]} 42. Ng2 {[%emt 0:00:19]} g6 {[%emt 0:03:24]} 43. hxg6+ {[%emt 0:04:50]} Kxg6 {[%emt 0:00:09]} 44. Nh4+ {[%emt 0:00:03]} Kf7 {[%emt 0:00:20]} 45. exf6 {[%emt 0:05:34]} Kxf6 {[%emt 0:00:10]} 46. Nf3 {[%emt 0:01:26]} Kg6 {[%emt 0:02:19]} 1/2-1/2

[Event "European-ch Seniors 2018"]
[Site "Drammen"]
[Date "2018.08.10"]
[Round "7"]
[White "Kolbak, Jens"]
[Black "Ackermann, Hans Werner"]
[Result "0-1"]
[ECO "A41"]
[WhiteElo "2181"]
[BlackElo "2246"]
[Annotator "NA"]
[PlyCount "102"]
[EventDate "2018.08.04"]
[EventType "swiss"]
[EventCountry "NOR"]
[SourceTitle "playchess.com"]
[Source "ChessBase"]
[SourceQuality "1"]
[TimeControl "40/5400+30:1800+30"]

1. d4 {[%emt 0:00:00]} d6 {[%emt 0:00:00]} 2. e4 {[%emt 0:00:00]} g6 {[%emt 0:00:00]} 3. Nc3 {[%emt 0:00:49]} a6 {[%emt 0:00:13]} 4. Be3 {[%emt 0:02:11]} b5 {[%emt 0:01:01]} 5. a3 {[%emt 0:00:16]} Bb7 {[%emt 0:00:28]} 6. f3 {[%emt 0:02:18]} Nd7 {[%emt 0:04:53]} 7. Nh3 {[%emt 0:05:55]} Bg7 {[%emt 0:04:36]} 8. Be2 {[%emt 0:02:46]} e6 {[%emt 0:06:07]} 9. O-O {[%emt 0:01:15]} Ne7 {[%emt 0:06:03]} 10. Qd2 {[%emt 0:00:49]} h6 {[%emt 0:00:41]} 11. Rad1 {[%emt 0:01:56]} d5 {[%emt 0:13:27]} 12. Nf2 {[%emt 0:09:31]} Nf6 {[%emt 0:11:06]} 13. Rfe1 {[%emt 0:06:52]} Kf8 {[%emt 0:07:23]} 14. Bf1 {[%emt 0:01:23]} Kg8 {[%emt 0:04:05]} 15. Nd3 {[%emt 0:06:14]} Qc8 {[%emt 0:11:03]} 16. Nc5 {[%emt 0:02:35]} Nd7 {[%emt 0:01:29]} 17. Bf2 {[%emt 0:12:18]} Nxc5 {[%emt 0:06:02]} 18. dxc5 {[%emt 0:00:07]} Kh7 {[%emt 0:00:25]} 19. exd5 {[%emt 0:06:53]} Nxd5 {[%emt 0:05:10]} 20. Bd4 {[%emt 0:00:45]} Bxd4+ {[%emt 0:02:00]} 21. Qxd4 {[%emt 0:00:07]} Nxc3 {[%emt 0:00:27]} 22. Qxc3 {[%emt 0:00:18]} Bd5 {[%emt 0:00:10]} 23. b4 {[%emt 0:11:22]} Qf8 {[%emt 0:02:13]} 24. Qe5 {[%emt 0:04:56]} c6 {[%emt 0:01:25]} 25. Qf4 {[%emt 0:03:29]} Qg7 {[%emt 0:00:33]} 26. c4 {[%emt 0:01:41]} bxc4 {[%emt 0:00:12]} 27. Bxc4 {[%emt 0:00:04]} Ra7 {[%emt 0:04:52]} 28. Bxd5 {[%emt 0:00:23]} cxd5 {[%emt 0:00:09]} 29. Rc1 {[%emt 0:04:27]} Rc8 {[%emt 0:00:31]} 30. Qe5 {[%emt 0:02:59]} Qxe5 {[%emt 0:00:40]} 31. Rxe5 {[%emt 0:00:06]} Rac7 {[%emt 0:00:09]} 32. Re2 {[%emt 0:01:58]} a5 {[%emt 0:00:14]} 33. f4 {[%emt 0:02:22]} Rb8 {[%emt 0:02:10]} 34. Rb2 {[%emt 0:00:24]} Rb5 {[%emt 0:00:08]} 35. Kf2 {[%emt 0:00:39]} f6 {[%emt 0:00:10]} 36. Ke3 {[%emt 0:00:32]} e5 {[%emt 0:00:06]} 37. fxe5 {[%emt 0:00:37]} fxe5 {[%emt 0:00:04]} 38. Rd2 {[%emt 0:03:23]} axb4 {[%emt 0:05:10]} 39. axb4 {[%emt 0:00:05]} Rd7 {[%emt 0:00:21]} 40. c6 {[%emt 0:00:00]} Rc7 {[%emt 0:00:00]} 41. Rb2 {[%emt 0:04:57]} Kg7 {[%emt 0:00:33]} 42. Kd3 {[%emt 0:02:57]} Kf7 {[%emt 0:01:41]} 43. Rf2+ {[%emt 0:02:51]} Ke6 {[%emt 0:04:28]} 44. Rcf1 {[%emt 0:03:25]} e4+ {[%emt 0:01:05]} 45. Kd4 {[%emt 0:03:05]} Rxb4+ {[%emt 0:00:57]} 46. Kc5 {[%emt 0:00:07]} Rc4+ {[%emt 0:00:22]} 47. Kb5 {[%emt 0:00:06]} e3 {[%emt 0:12:25]} 48. Rf6+ {[%emt 0:00:34]} Ke5 {[%emt 0:00:03]} 49. Rxg6 {[%emt 0:00:11]} Rc2 {[%emt 0:00:24]} 50. Rff6 {[%emt 0:02:55]} Re7 {[%emt 0:01:32]} 51. Rf3 {[%emt 0:01:57]} d4 {[%emt 0:00:27]} 0-1

[Event "European-ch Seniors 2018"]
[Site "Drammen"]
[Date "2018.08.10"]
[Round "7"]
[White "Gayson, Peter M"]
[Black "Jensen, Thore Nyboe"]
[Result "1-0"]
[ECO "C06"]
[WhiteElo "2150"]
[BlackElo "2083"]
[Annotator "NA"]
[PlyCount "107"]
[EventDate "2018.08.04"]
[EventType "swiss"]
[EventCountry "NOR"]
[SourceTitle "playchess.com"]
[Source "ChessBase"]
[SourceQuality "1"]
[TimeControl "40/5400+30:1800+30"]

1. e4 {[%emt 0:00:00]} e6 {[%emt 0:00:42]} 2. d4 {[%emt 0:00:00]} d5 {[%emt 0:00:02]} 3. Nd2 {[%emt 0:00:00]} Nf6 {[%emt 0:00:12]} 4. e5 {[%emt 0:00:08]} Nfd7 {[%emt 0:00:04]} 5. Bd3 {[%emt 0:00:32]} c5 {[%emt 0:00:07]} 6. c3 {[%emt 0:00:13]} Nc6 {[%emt 0:00:06]} 7. Ne2 {[%emt 0:00:26]} cxd4 {[%emt 0:08:54]} 8. cxd4 {[%emt 0:01:08]} Qb6 {[%emt 0:06:47]} 9. Nf3 {[%emt 0:01:48]} Bb4+ {[%emt 0:07:20]} 10. Bd2 {[%emt 0:01:21]} Bxd2+ {[%emt 0:07:06]} 11. Qxd2 {[%emt 0:00:21]} Qb4 {[%emt 0:00:18]} 12. Rc1 {[%emt 0:11:03]} f6 {[%emt 0:02:25]} 13. exf6 {[%emt 0:07:40]} Qxd2+ {[%emt 0:03:15]} 14. Kxd2 {[%emt 0:05:54]} gxf6 {[%emt 0:01:18]} 15. Bb5 {[%emt 0:08:21]} Ndb8 {[%emt 0:02:41]} 16. Nf4 {[%emt 0:02:01]} Bd7 {[%emt 0:10:22]} 17. Rhe1 {[%emt 0:06:44]} Kf7 {[%emt 0:06:29]} 18. Nd3 {[%emt 0:05:19]} b6 {[%emt 0:06:06]} 19. g4 {[%emt 0:08:36]} h6 {[%emt 0:04:05]} 20. h4 {[%emt 0:02:55]} a6 {[%emt 0:08:54]} 21. Ba4 {[%emt 0:14:54]} Ke7 {[%emt 0:06:38]} 22. g5 {[%emt 0:04:39]} hxg5 {[%emt 0:04:10]} 23. hxg5 {[%emt 0:01:05]} Rf8 {[%emt 0:01:42]} 24. g6 {[%emt 0:11:46]} Kd6 {[%emt 0:02:39]} 25. Rh1 {[%emt 0:01:25]} Nxd4 {[%emt 0:00:50]} 26. Nxd4 {[%emt 0:00:53]} Bxa4 {[%emt 0:00:08]} 27. Nf4 {[%emt 0:01:11]} Bd7 {[%emt 0:00:34]} 28. g7 {[%emt 0:01:52]} Rg8 {[%emt 0:00:26]} 29. Nh5 {[%emt 0:00:49]} Nc6 {[%emt 0:00:49]} 30. Nxc6 {[%emt 0:00:32]} Bxc6 {[%emt 0:00:13]} 31. Rcg1 {[%emt 0:00:15]} Ke7 {[%emt 0:06:05]} 32. Re1 {[%emt 0:00:05]} d4 {[%emt 0:01:02]} 33. Rhg1 {[%emt 0:00:34]} Kf7 {[%emt 0:00:29]} 34. Rc1 {[%emt 0:01:23]} Rac8 {[%emt 0:00:38]} 35. f4 {[%emt 0:00:04]} Bb7 {[%emt 0:02:33]} 36. Rxc8 {[%emt 0:00:36]} Bxc8 {[%emt 0:00:05]} 37. Kd3 {[%emt 0:00:38]} Bb7 {[%emt 0:00:25]} 38. Rg3 {[%emt 0:00:29]} e5 {[%emt 0:01:29]} 39. fxe5 {[%emt 0:00:07]} fxe5 {[%emt 0:00:00]} 40. Rg5 {[%emt 0:00:00]} Bf3 {[%emt 0:00:00]} 41. Rf5+ {[%emt 0:12:08]} Kg6 {[%emt 0:01:13]} 42. Rxf3 {[%emt 0:00:22]} Kxh5 {[%emt 0:00:13]} 43. Rf5+ {[%emt 0:00:14]} Kg6 {[%emt 0:08:17]} 44. Rxe5 {[%emt 0:00:42]} Kf6 {[%emt 0:00:25]} 45. Rh5 {[%emt 0:10:36]} Rxg7 {[%emt 0:00:57]} 46. Kxd4 {[%emt 0:01:32]} Rg4+ {[%emt 0:07:36]} 47. Kd5 {[%emt 0:03:05]} Rb4 {[%emt 0:03:04]} 48. Rh6+ {[%emt 0:00:27]} Kg5 {[%emt 0:09:49]} 49. Rh2 {[%emt 0:00:08]} a5 {[%emt 0:03:27]} 50. b3 {[%emt 0:03:10]} Kg4 {[%emt 0:00:36]} 51. Rc2 {[%emt 0:01:46]} Kf3 {[%emt 0:01:04]} 52. Rc4 {[%emt 0:00:31]} b5 {[%emt 0:00:31]} 53. Rxb4 {[%emt 0:00:12]} axb4 {[%emt 0:00:02]} 54. Kc5 {[%emt 0:00:09]} 1-0

[Event "European-ch Seniors 2018"]
[Site "Drammen"]
[Date "2018.08.10"]
[Round "7"]
[White "Holst, Conny"]
[Black "Ali, Karim"]
[Result "1-0"]
[ECO "E00"]
[WhiteElo "2147"]
[BlackElo "1819"]
[Annotator "NA"]
[PlyCount "103"]
[EventDate "2018.08.04"]
[EventType "swiss"]
[EventCountry "NOR"]
[SourceTitle "playchess.com"]
[Source "ChessBase"]
[SourceQuality "1"]
[TimeControl "40/5400+30:1800+30"]

1. d4 {[%emt 0:00:00]} Nf6 {[%emt 0:00:00]} 2. c4 {[%emt 0:00:00]} e6 {[%emt 0:00:00]} 3. Nc3 {[%emt 0:00:10]} b6 {[%emt 0:00:15]} 4. e4 {[%emt 0:01:49]} Bb7 {[%emt 0:00:07]} 5. f3 {[%emt 0:02:52]} d6 {[%emt 0:04:18]} 6. Nge2 {[%emt 0:04:17]} Nbd7 {[%emt 0:02:09]} 7. Be3 {[%emt 0:02:30]} g6 {[%emt 0:02:13]} 8. Qd2 {[%emt 0:01:24]} h6 {[%emt 0:00:32]} 9. O-O-O {[%emt 0:05:07]} Bg7 {[%emt 0:01:55]} 10. g4 {[%emt 0:04:55]} g5 {[%emt 0:02:52]} 11. h4 {[%emt 0:05:48]} gxh4 {[%emt 0:09:54]} 12. g5 {[%emt 0:02:42]} hxg5 {[%emt 0:00:27]} 13. Bxg5 {[%emt 0:02:33]} Nf8 {[%emt 0:10:47]} 14. Bh3 {[%emt 0:08:44]} Qd7 {[%emt 0:07:56]} 15. d5 {[%emt 0:06:52]} Nh5 {[%emt 0:16:50]} 16. Kb1 {[%emt 0:04:38]} Ng3 {[%emt 0:02:18]} 17. Nxg3 {[%emt 0:01:02]} hxg3 {[%emt 0:00:38]} 18. Rdg1 {[%emt 0:05:58]} f6 {[%emt 0:04:29]} 19. Be3 {[%emt 0:08:49]} Qf7 {[%emt 0:02:24]} 20. Rxg3 {[%emt 0:01:03]} Bc8 {[%emt 0:00:18]} 21. Rhg1 {[%emt 0:02:20]} Rh7 {[%emt 0:01:28]} 22. dxe6 {[%emt 0:01:11]} Bxe6 {[%emt 0:05:56]} 23. Bxe6 {[%emt 0:01:24]} Nxe6 {[%emt 0:00:07]} 24. Qd5 {[%emt 0:01:35]} Rd8 {[%emt 0:01:19]} 25. Qf5 {[%emt 0:03:47]} Rh5 {[%emt 0:01:42]} 26. Qg4 {[%emt 0:03:42]} f5 {[%emt 0:01:42]} 27. exf5 {[%emt 0:01:06]} Rxf5 {[%emt 0:01:30]} 28. Nd5 {[%emt 0:05:14]} Kd7 {[%emt 0:03:20]} 29. Qe4 {[%emt 0:02:38]} Re5 {[%emt 0:04:48]} 30. Qg4 {[%emt 0:02:35]} c6 {[%emt 0:00:26]} 31. f4 {[%emt 0:03:09]} Rf5 {[%emt 0:03:34]} 32. Nc3 {[%emt 0:00:55]} Bxc3 {[%emt 0:00:52]} 33. bxc3 {[%emt 0:00:07]} Rf8 {[%emt 0:01:11]} 34. Qh3 {[%emt 0:01:27]} Ke8 {[%emt 0:01:34]} 35. Rg6 {[%emt 0:01:05]} Kd7 {[%emt 0:01:31]} 36. Qh6 {[%emt 0:00:54]} Qe8 {[%emt 0:01:57]} 37. Bd2 {[%emt 0:01:01]} Rh8 {[%emt 0:01:26]} 38. Rg7+ {[%emt 0:00:56]} Kd8 {[%emt 0:00:30]} 39. Rh7 {[%emt 0:01:25]} Rxh7 {[%emt 0:01:50]} 40. Qxh7 {[%emt 0:00:00]} Rf7 {[%emt 0:00:00]} 41. Qh6 {[%emt 0:05:58]} Kd7 {[%emt 0:02:04]} 42. Rg6 {[%emt 0:02:20]} Qe7 {[%emt 0:02:49]} 43. Qh3 {[%emt 0:01:52]} Rh7 {[%emt 0:02:16]} 44. Qg4 {[%emt 0:00:35]} Rf7 {[%emt 0:04:15]} 45. Kb2 {[%emt 0:02:10]} Rf6 {[%emt 0:04:55]} 46. f5 {[%emt 0:02:24]} Rxg6 {[%emt 0:06:03]} 47. Qxg6 {[%emt 0:00:32]} Nd8 {[%emt 0:00:06]} 48. Qg4 {[%emt 0:03:38]} Qf7 {[%emt 0:01:44]} 49. Bg5 {[%emt 0:02:02]} Nb7 {[%emt 0:00:33]} 50. f6+ {[%emt 0:00:59]} Kc7 {[%emt 0:00:33]} 51. Bh4 {[%emt 0:01:04]} Kd8 {[%emt 0:01:41]} 52. Qg8+ {[%emt 0:00:55]} 1-0

[Event "European-ch Seniors 2018"]
[Site "Drammen"]
[Date "2018.08.10"]
[Round "7"]
[White "Bjerke, Richard"]
[Black "Kirppo, Ronny"]
[Result "1-0"]
[ECO "E17"]
[WhiteElo "2141"]
[BlackElo "1885"]
[Annotator "NA"]
[PlyCount "133"]
[EventDate "2018.08.04"]
[EventType "swiss"]
[EventCountry "NOR"]
[SourceTitle "playchess.com"]
[Source "ChessBase"]
[SourceQuality "1"]
[TimeControl "40/5400+30:1800+30"]

1. d4 {[%emt 0:00:00]} Nf6 {[%emt 0:00:00]} 2. c4 {[%emt 0:00:00]} e6 {[%emt 0:00:00]} 3. Nf3 {[%emt 0:00:00]} b6 {[%emt 0:00:12]} 4. g3 {[%emt 0:00:37]} Bb7 {[%emt 0:00:16]} 5. Bg2 {[%emt 0:00:15]} Be7 {[%emt 0:00:15]} 6. Nc3 {[%emt 0:00:40]} Ne4 {[%emt 0:07:44]} 7. Bd2 {[%emt 0:01:32]} O-O {[%emt 0:03:58]} 8. O-O {[%emt 0:00:44]} f5 {[%emt 0:06:26]} 9. Rc1 {[%emt 0:02:29]} Bf6 {[%emt 0:05:44]} 10. d5 {[%emt 0:05:14]} Na6 {[%emt 0:14:28]} 11. Be1 {[%emt 0:16:32]} Nac5 {[%emt 0:11:52]} 12. Nd4 {[%emt 0:02:33]} a5 {[%emt 0:07:27]} 13. Ndb5 {[%emt 0:06:40]} Nxc3 {[%emt 0:11:43]} 14. Nxc3 {[%emt 0:00:47]} e5 {[%emt 0:00:07]} 15. Na4 {[%emt 0:04:49]} Nxa4 {[%emt 0:03:30]} 16. Qxa4 {[%emt 0:00:10]} d6 {[%emt 0:00:05]} 17. Qc2 {[%emt 0:02:59]} e4 {[%emt 0:01:49]} 18. Bd2 {[%emt 0:06:38]} Qe7 {[%emt 0:01:56]} 19. e3 {[%emt 0:04:56]} Be5 {[%emt 0:03:00]} 20. f4 {[%emt 0:08:02]} Bf6 {[%emt 0:01:00]} 21. g4 {[%emt 0:01:33]} g6 {[%emt 0:00:18]} 22. g5 {[%emt 0:02:36]} Bg7 {[%emt 0:00:09]} 23. b3 {[%emt 0:04:12]} c5 {[%emt 0:05:32]} 24. dxc6 {[%emt 0:01:38]} Bxc6 {[%emt 0:00:01]} 25. Rfd1 {[%emt 0:02:23]} Rfc8 {[%emt 0:01:53]} 26. Bf1 {[%emt 0:03:05]} Bd7 {[%emt 0:04:52]} 27. Bc3 {[%emt 0:01:00]} Be6 {[%emt 0:01:08]} 28. Bxg7 {[%emt 0:01:21]} Kxg7 {[%emt 0:00:01]} 29. Rd2 {[%emt 0:02:16]} Rc5 {[%emt 0:04:08]} 30. Rcd1 {[%emt 0:07:53]} Rd8 {[%emt 0:01:32]} 31. a3 {[%emt 0:00:54]} Kf7 {[%emt 0:01:15]} 32. b4 {[%emt 0:02:18]} axb4 {[%emt 0:00:09]} 33. axb4 {[%emt 0:00:10]} Rcc8 {[%emt 0:00:28]} 34. Rd4 {[%emt 0:02:48]} Ra8 {[%emt 0:01:29]} 35. Qb2 {[%emt 0:01:30]} Rab8 {[%emt 0:01:03]} 36. h4 {[%emt 0:02:24]} Rb7 {[%emt 0:00:43]} 37. h5 {[%emt 0:01:15]} gxh5 {[%emt 0:00:25]} 38. Qh2 {[%emt 0:00:51]} Kg8 {[%emt 0:00:38]} 39. Qxh5 {[%emt 0:00:50]} Rbd7 {[%emt 0:01:23]} 40. Qh2 {[%emt 0:00:00]} Qf7 {[%emt 0:00:00]} 41. Qc2 {[%emt 0:03:11]} Kf8 {[%emt 0:08:42]} 42. Qh2 {[%emt 0:05:33]} Qg7 {[%emt 0:06:45]} 43. R1d2 {[%emt 0:01:34]} Kg8 {[%emt 0:02:16]} 44. Qh4 {[%emt 0:01:10]} Qe7 {[%emt 0:04:34]} 45. Qh6 {[%emt 0:02:47]} Bf7 {[%emt 0:00:58]} 46. Qh3 {[%emt 0:03:07]} Bg6 {[%emt 0:01:31]} 47. Qh4 {[%emt 0:02:16]} Bf7 {[%emt 0:00:50]} 48. Bh3 {[%emt 0:00:50]} Bg6 {[%emt 0:00:15]} 49. Qe1 {[%emt 0:00:30]} Ra8 {[%emt 0:03:49]} 50. Qd1 {[%emt 0:05:15]} Rda7 {[%emt 0:02:56]} 51. Bf1 {[%emt 0:01:37]} Ra1 {[%emt 0:00:27]} 52. Qe2 {[%emt 0:00:31]} Rd8 {[%emt 0:03:07]} 53. c5 {[%emt 0:01:18]} bxc5 {[%emt 0:00:19]} 54. bxc5 {[%emt 0:00:08]} Bf7 {[%emt 0:00:51]} 55. Rxd6 {[%emt 0:01:18]} Rxd6 {[%emt 0:00:27]} 56. cxd6 {[%emt 0:02:06]} Qd7 {[%emt 0:00:13]} 57. Kf2 {[%emt 0:01:43]} Be6 {[%emt 0:00:53]} 58. Kg3 {[%emt 0:02:13]} Ra3 {[%emt 0:00:18]} 59. Rd4 {[%emt 0:01:43]} Ra2 {[%emt 0:00:23]} 60. Qd1 {[%emt 0:00:40]} Kg7 {[%emt 0:00:32]} 61. Qc1 {[%emt 0:01:01]} Ra7 {[%emt 0:00:33]} 62. Qc5 {[%emt 0:00:23]} Kg6 {[%emt 0:00:44]} 63. Bb5 {[%emt 0:00:22]} Qf7 {[%emt 0:00:49]} 64. d7 {[%emt 0:00:30]} Rxd7 {[%emt 0:00:10]} 65. Bxd7 {[%emt 0:00:16]} Bxd7 {[%emt 0:00:02]} 66. Rd6+ {[%emt 0:00:13]} Kg7 {[%emt 0:00:45]} 67. Qd4+ {[%emt 0:00:06]} 1-0

[Event "European-ch Seniors 2018"]
[Site "Drammen"]
[Date "2018.08.10"]
[Round "7"]
[White "Sorokina, Tamara"]
[Black "Gruzmann, Boris"]
[Result "0-1"]
[ECO "A45"]
[WhiteElo "2050"]
[BlackElo "2183"]
[Annotator "NA"]
[PlyCount "96"]
[EventDate "2018.08.04"]
[EventType "swiss"]
[EventCountry "NOR"]
[SourceTitle "playchess.com"]
[Source "ChessBase"]
[SourceQuality "1"]
[TimeControl "40/5400+30:1800+30"]

1. d4 {[%emt 0:00:00]} Nf6 {[%emt 0:00:00]} 2. Nd2 {[%emt 0:00:00]} c5 {[%emt 0:01:48]} 3. c3 {[%emt 0:00:00]} cxd4 {[%emt 0:01:40]} 4. cxd4 {[%emt 0:00:00]} Nc6 {[%emt 0:02:19]} 5. e3 {[%emt 0:00:01]} d6 {[%emt 0:01:06]} 6. Bd3 {[%emt 0:00:15]} g6 {[%emt 0:00:19]} 7. Ngf3 {[%emt 0:00:06]} Bg7 {[%emt 0:00:08]} 8. O-O {[%emt 0:00:06]} O-O {[%emt 0:00:09]} 9. a3 {[%emt 0:03:52]} e5 {[%emt 0:00:52]} 10. h3 {[%emt 0:02:51]} Qe7 {[%emt 0:01:27]} 11. dxe5 {[%emt 0:01:09]} dxe5 {[%emt 0:00:10]} 12. e4 {[%emt 0:00:12]} Rd8 {[%emt 0:00:58]} 13. Qe2 {[%emt 0:00:06]} Nh5 {[%emt 0:00:54]} 14. Nb3 {[%emt 0:00:47]} Be6 {[%emt 0:02:39]} 15. Bc4 {[%emt 0:00:25]} Rac8 {[%emt 0:00:32]} 16. Bxe6 {[%emt 0:01:44]} Qxe6 {[%emt 0:00:16]} 17. Nc5 {[%emt 0:00:07]} Qe7 {[%emt 0:00:48]} 18. Nd3 {[%emt 0:03:42]} Nd4 {[%emt 0:13:16]} 19. Nxd4 {[%emt 0:00:17]} Rxd4 {[%emt 0:00:08]} 20. Nb4 {[%emt 0:11:09]} Nf4 {[%emt 0:00:16]} 21. Bxf4 {[%emt 0:00:30]} exf4 {[%emt 0:00:07]} 22. f3 {[%emt 0:00:02]} a5 {[%emt 0:02:30]} 23. Nd3 {[%emt 0:02:40]} Qd6 {[%emt 0:05:30]} 24. Rfd1 {[%emt 0:01:37]} Qb6 {[%emt 0:03:51]} 25. Kh1 {[%emt 0:00:55]} Qb3 {[%emt 0:04:20]} 26. Rd2 {[%emt 0:01:33]} Rcd8 {[%emt 0:10:18]} 27. Rad1 {[%emt 0:00:08]} b6 {[%emt 0:05:27]} 28. Kh2 {[%emt 0:05:36]} h6 {[%emt 0:02:19]} 29. e5 {[%emt 0:06:13]} g5 {[%emt 0:07:02]} 30. Nc1 {[%emt 0:04:11]} Qxd1 {[%emt 0:06:27]} 31. Rxd1 {[%emt 0:01:00]} Rxd1 {[%emt 0:00:09]} 32. Na2 {[%emt 0:01:21]} R1d2 {[%emt 0:03:07]} 33. Qb5 {[%emt 0:00:16]} R2d5 {[%emt 0:04:49]} 34. Qxb6 {[%emt 0:00:23]} Bxe5 {[%emt 0:00:18]} 35. Nc3 {[%emt 0:00:44]} Bxc3 {[%emt 0:01:07]} 36. bxc3 {[%emt 0:00:02]} R8d6 {[%emt 0:01:53]} 37. Qb8+ {[%emt 0:00:52]} Kg7 {[%emt 0:01:48]} 38. c4 {[%emt 0:00:10]} Rd2 {[%emt 0:01:48]} 39. c5 {[%emt 0:00:18]} Re6 {[%emt 0:00:24]} 40. h4 {[%emt 0:00:00]} Ree2 {[%emt 0:00:00]} 41. hxg5 {[%emt 0:02:25]} Rxg2+ {[%emt 0:03:06]} 42. Kh1 {[%emt 0:00:04]} Rge2 {[%emt 0:15:14]} 43. gxh6+ {[%emt 0:01:19]} Kh7 {[%emt 0:01:06]} 44. Qb1+ {[%emt 0:00:28]} Kxh6 {[%emt 0:00:41]} 45. Qf1 {[%emt 0:01:12]} Re5 {[%emt 0:04:09]} 46. Qc1 {[%emt 0:02:56]} Red5 {[%emt 0:04:09]} 47. Qc3 {[%emt 0:00:11]} Kh7 {[%emt 0:03:14]} 48. c6 {[%emt 0:02:02]} f5 0-1